Workbook

Sheet 예산총괄표
A1: 법인회계 예산 총괄표
A3: 1. 세 입
F4: (단위:천원)
A5: 과별 | B5: 예산액 | C5: 구성비(%) | D5: 전년도 예산액 | E5: 비교증감 | F5: 비고
A6: 1. 재산수입 | B6: 97,899 | C6: =(B6/$B$14)*100 -> 49.2 | D6: 97,753 | E6: =SUM(B6-D6) -> 146
A7: 2. 사업수입 | C7: 0.0
A8: 3. 투자사업 | C8: 0.0
A9: 4. 과년도수입 | B9: 0 | C9: 0.0 | D9: 0 | E9: =SUM(B9-D9) -> 0
A10: 5. 이월금 | B10: 100,500 | C10: 50.5 | D10: 114,300 | E10: =SUM(B10-D10) -> -13,800
A11: 6. 기부원조금 | B11: 0 | C11: 0.0 | D11: 0 | E11: =SUM(B11-D11) -> 0
A12: 7. 차입금 | B12: 0 | C12: 0.0 | D12: 0 | E12: =SUM(B12-D12) -> 0
A13: 8. 잡수입 | B13: 753 | C13: 0.4 | D13: 735 | E13: =SUM(B13-D13) -> 18
A14: 세입합계 | B14: =SUM(B6:B13) -> 199,152 | C14: =SUM(C6:C13) -> 100 | D14: =SUM(D6:D13) -> 212,788 | E14: =SUM(E6:E13) -> -13,636
A17: 1. 세 출
F18: (단위:천원)
A19: 과별 | B19: 예산액 | C19: 구성비(%) | D19: 전년도 예산액 | E19: 비교증감 | F19: 비고
A20: 이사회비 | B20: 800 | C20: =SUM(B20/$B$26)*100 -> 0.4 | D20: 1,600 | E20: =SUM(B20-D20) -> -800
A21: 사무비 | B21: 4,948 | C21: =SUM(B21/$B$26)*100 -> 2.5 | D21: 4,900 | E21: 48
A22: 재산조성비 | B22: 34,342 | C22: 17.2 | D22: 38,000 | E22: -3,658
A23: 전출금 | B23: 59,062 | C23: 29.7 | D23: 68,288 | E23: -9,226
A24: 잡지출 | B24: 0 | C24: 0.0 | D24: 0 | E24: 0
A25: 예비비 | B25: 100,000 | C25: 50.2 | D25: 100,000 | E25: 0
A26: 세출합계 | B26: =SUM(B20:B25) -> 199,152 | C26: 100.0 | D26: =SUM(D20:D25) -> 212,788 | E26: =SUM(E20:E25) -> -13,636
